bitfinex/quotes_BTCUSD_20260101
["timestamp","ask_amount","ask_price","bid_price","bid_amount"]
[1767286879083,0.05621143,88041.0,88040.0,0.18914751]
[1767286879278,0.03163767,88041.0,88040.0,1e-08]
[1767286879483,0.03163767,88041.0,88029.0,0.049268]
[1767286879484,0.05679236,88040.0,88029.0,0.049268]
[1767286879702,0.01066667,88039.0,88029.0,0.049268]
[1767286879902,0.01066667,88038.0,88029.0,0.049268]
[1767286880081,0.4437207,88039.0,88029.0,0.049268]
[1767286880707,0.4550793,88039.0,88029.0,0.049268]
[1767286880902,0.4437207,88039.0,88029.0,0.049268]
[1767286881086,0.4437207,88039.0,88021.0,0.01136]
[1767286881300,0.4437207,88039.0,88022.0,0.049068]
[1767286881301,0.4437207,88031.0,88022.0,0.049068]
[1767286882344,0.4437207,88031.0,88022.0,0.04134993]
[1767286883128,0.01136,88032.0,88022.0,0.04134993]
[1767286883338,0.4550807,88032.0,88022.0,0.04134993]
[1767286886326,0.4664402,88032.0,88022.0,0.04134993]
[1767286886601,0.4550807,88032.0,88022.0,0.04134993]
[1767286888574,0.4550807,88032.0,88022.0,0.04114993]
[1767286890332,0.4550807,88032.0,88015.0,0.05310375]
[1767286890533,0.4437207,88030.0,88015.0,0.05310375]
[1767286892006,0.4437207,88030.0,88015.0,0.06446544]
[1767286892182,0.4437207,88030.0,88015.0,0.05310375]
[1767286893076,0.4437207,88030.0,88015.0,0.06446544]
[1767286893284,0.4437207,88030.0,88015.0,0.05310375]
[1767286893452,0.4437207,88030.0,88015.0,0.06446544]
[1767286893854,0.4437207,88030.0,88015.0,0.05310375]
[1767286896182,0.4437207,88030.0,88015.0,0.06446544]
[1767286896319,0.4437207,88030.0,88016.0,0.01136157]
[1767286896521,0.4437207,88030.0,88017.0,0.05310375]
[1767286899779,0.44379279,88030.0,88017.0,0.05310375]
[1767286904520,7.209e-05,88030.0,88017.0,0.05310375]
[1767286908608,7.209e-05,88030.0,88017.0,0.06446519]
[1767286908747,7.209e-05,88030.0,88017.0,0.05310375]
[1767286910187,0.01143185,88030.0,88017.0,0.05310375]
[1767286910385,0.01136015,88027.0,88017.0,0.05310375]
[1767286910636,0.01136027,88026.0,88017.0,0.05310375]
[1767286910845,0.000549,88017.0,88014.0,0.000147]
[1767286911058,0.000549,88017.0,88008.0,0.05310375]
[1767286911059,0.06871816,88017.0,88008.0,0.05310375]
[1767286911344,0.01136118,88016.0,88008.0,0.05310375]
[1767286916278,0.01136118,88016.0,88005.0,0.00052519]
[1767286919579,0.01136118,88016.0,88005.0,0.05040579]
[1767286921299,0.01136,88017.0,88005.0,0.05040579]
[1767286930712,0.01081,88017.0,88005.0,0.05040579]
[1767286931574,0.01081,88017.0,88005.0,0.06176878]
[1767286931952,0.01081,88017.0,88005.0,0.05040579]
[1767286932158,0.01081,88017.0,88005.0,0.06176878]
[1767286932358,0.01081,88017.0,88005.0,0.05040579]
[1767286932854,0.01081,88017.0,88005.0,0.06176878]
[1767286933293,0.01081,88017.0,88005.0,0.05040579]
[1767286935453,0.01081,88017.0,88005.0,0.06176878]
[1767286936941,0.01081,88017.0,88005.0,0.05040579]
[1767286937145,0.01081,88017.0,88005.0,0.06176878]
[1767286938409,0.01081,88017.0,88006.0,0.01136286]
[1767286938859,0.01081,88017.0,88005.0,0.06176878]
[1767286940485,0.01081,88017.0,88005.0,0.05040579]
[1767286947961,0.01063813,88017.0,88005.0,0.05040579]
[1767286952356,0.01063813,88017.0,88005.0,0.06176878]
[1767286952758,0.01063813,88017.0,88006.0,0.01136286]
[1767286952962,0.01063813,88017.0,88005.0,0.05921693]
[1767286955376,0.01063813,88017.0,88005.0,0.04785394]
[1767286955826,0.01063813,88017.0,88005.0,0.05921693]
[1767286957023,0.01063813,88017.0,88006.0,0.01136286]
[1767286957210,0.01063813,88017.0,88006.0,0.04732875]
[1767286957823,0.01063813,88017.0,88006.0,0.05869161]
[1767286958778,0.01063813,88017.0,88007.0,0.01136273]
[1767286959123,0.01063813,88017.0,88006.0,0.05869161]
[1767286959977,0.01063813,88017.0,88007.0,0.01136273]
[1767286960532,0.01063813,88017.0,88006.0,0.05869161]
[1767286960833,0.01063813,88017.0,88007.0,0.01136273]
[1767286961507,0.01136,88016.0,88007.0,0.01136273]
[1767286961713,0.04881957,88026.0,88009.0,0.04732875]
[1767286961912,0.0466093,88025.0,88013.0,0.04732875]
[1767286962116,0.0352493,88024.0,88013.0,0.0586907]
[1767286962324,0.01136,88025.0,88013.0,0.0586907]
[1767286962460,0.03524519,88024.0,88013.0,0.04732875]
[1767286962657,0.01136,88025.0,88013.0,0.04732875]
[1767286962864,0.03524519,88024.0,88013.0,0.0586907]
[1767286963040,0.01136,88025.0,88013.0,0.04732875]
[1767286967916,0.01136,88025.0,88013.0,0.04677975]
[1767286969717,0.01136,88024.0,88013.0,0.04677975]
[1767286971586,0.01136,88024.0,88013.0,0.0581417]
[1767286972719,0.01136,88024.0,88013.0,0.0501417]
[1767286974013,0.01136,88024.0,88013.0,0.03877975]
[1767286979929,0.01136,88024.0,88013.0,0.00877975]
[1767286982212,0.01136,88024.0,88010.0,0.44377475]
[1767286982213,0.05853936,88024.0,88010.0,0.44377475]
[1767286986548,0.05853936,88024.0,88011.0,0.01136221]
[1767286986752,0.05853936,88024.0,88014.0,0.01136182]
[1767286986992,0.01136,88024.0,88014.0,0.00836182]
[1767286987204,0.01136,88024.0,88015.0,0.01136169]
[1767286987407,0.00161025,88024.0,88018.0,0.01136131]
[1767286987608,1.144e-05,88024.0,88018.0,0.01136131]
[1767286988013,1.144e-05,88024.0,88017.0,0.01136144]
[1767286988014,0.01136,88025.0,88017.0,0.01136144]
[1767286988614,0.01136,88025.0,88018.0,0.01136131]
[1767286990051,0.03411376,88028.0,88018.0,0.01136131]
[1767286990371,0.03523915,88027.0,88018.0,0.45513606]
[1767286990532,0.02457356,88026.0,88018.0,0.45513606]
[1767286990937,0.02457356,88026.0,88018.0,0.44377475]
[1767286991667,0.02457356,88026.0,88018.0,0.45513606]
[1767286992160,0.02457356,88026.0,88018.0,0.01136131]
[1767286992864,0.02457356,88026.0,88019.0,0.01136118]
[1767286993079,0.02457356,88026.0,88018.0,0.01136131]
[1767286993612,0.02457356,88026.0,88017.0,0.01136144]
[1767286993809,0.02457356,88026.0,88018.0,0.01136131]
[1767286994881,0.02457356,88026.0,88019.0,0.01136118]
[1767286995222,0.02457356,88026.0,88018.0,0.01136131]
[1767286995439,0.02457356,88026.0,88019.0,0.01136118]
[1767286995635,0.02457356,88026.0,88018.0,0.01136131]
[1767286995922,0.02457356,88026.0,88017.0,0.01136144]
[1767286996270,0.02457356,88026.0,88019.0,0.01136118]
[1767286997091,0.02457356,88026.0,88018.0,0.01136131]
[1767286997527,0.02457356,88026.0,88019.0,0.01136118]
[1767286997818,0.02457356,88026.0,88018.0,0.01136131]
[1767286998917,0.02457356,88026.0,88017.0,0.01136144]
[1767287001161,0.02457356,88026.0,88018.0,0.01136131]
[1767287001931,0.02457356,88026.0,88017.0,0.01136144]
[1767287003332,0.02457356,88026.0,88018.0,0.01136131]
[1767287003733,0.02457356,88026.0,88019.0,0.01136118]
[1767287003990,0.02457356,88026.0,88018.0,0.01136131]
[1767287004194,0.02457356,88026.0,88017.0,0.01136144]
[1767287005343,0.02457356,88026.0,88019.0,0.01136118]
[1767287005545,0.01136,88025.0,88018.0,0.01136131]
[1767287005977,0.01136,88025.0,88019.0,0.01136118]
[1767287007288,0.01136,88025.0,88018.0,0.01136131]
[1767287007765,0.01136,88025.0,88017.0,0.01136144]
[1767287009216,0.01136,88025.0,88016.0,0.01136157]
[1767287009978,0.01136,88025.0,88017.0,0.01136144]
[1767287010832,0.01136,88025.0,88016.0,0.01136157]
[1767287011729,0.01136,88025.0,88018.0,0.01136131]
[1767287011933,0.01136,88025.0,88017.0,0.01136144]
[1767287012514,0.01136,88025.0,88016.0,0.01136157]
[1767287012731,0.01136,88025.0,88017.0,0.01136144]
[1767287013344,0.01136,88025.0,88016.0,0.01136157]
[1767287016773,0.01136,88025.0,88015.0,0.45513644]
[1767287017009,0.01136,88025.0,88015.0,0.44377475]
[1767287017228,0.01136,88025.0,88015.0,0.45513644]
[1767287018184,0.01136,88025.0,88016.0,0.01136157]
[1767287019016,0.000549,88016.0,88015.0,0.44377475]
[1767287019227,0.000549,88016.0,88013.0,0.05680923]
[1767287019583,0.02458218,88024.0,88014.0,0.01136182]
[1767287019801,0.01136,88025.0,88014.0,0.01136182]
[1767287021741,0.01136,88025.0,88013.0,0.05680923]
[1767287022070,0.01136,88025.0,88014.0,0.01136182]
[1767287022238,0.000549,88014.0,88011.0,0.01136221]
[1767287022441,0.000549,88014.0,88011.0,0.05872208]
[1767287022805,0.02458215,88024.0,88012.0,0.01136208]
[1767287025050,0.02458215,88024.0,88011.0,0.05872208]
[1767287025251,0.02458215,88024.0,88012.0,0.01136208]
[1767287025651,0.02458215,88024.0,88011.0,0.05872208]
[1767287026254,0.02458215,88024.0,88011.0,0.04735987]
[1767287026867,0.02458215,88024.0,88011.0,0.05872208]
[1767287027026,0.02458215,88024.0,88011.0,0.04735987]
[1767287027442,0.07379707,88024.0,88011.0,0.01136221]
[1767287027648,0.04921492,88024.0,88012.0,0.01136208]
[1767287027887,0.04921492,88024.0,88011.0,0.01136221]
[1767287028707,0.04921492,88024.0,88012.0,0.01136208]
[1767287029063,0.04921492,88024.0,88011.0,0.01136221]
[1767287029870,0.04921492,88024.0,88012.0,0.01136208]
[1767287030499,0.04921492,88024.0,88011.0,0.01136221]
[1767287033014,0.04921492,88024.0,88010.0,0.45518658]
[1767287033463,0.04921492,88024.0,88011.0,0.01136221]
[1767287037370,0.04921492,88024.0,88006.0,0.04716459]
[1767287037532,0.04921492,88024.0,88006.0,0.05852745]
[1767287037738,0.04921492,88024.0,88008.0,0.0113626]
[1767287038238,0.04921492,88024.0,88006.0,0.04716459]
[1767287038458,0.04921492,88024.0,88006.0,0.05852745]
[1767287038925,0.04921492,88024.0,88007.0,0.01136273]
[1767287040022,0.04921492,88024.0,88008.0,0.0113626]
[1767287040750,0.04921492,88024.0,88009.0,0.01136247]
[1767287041335,0.04921492,88024.0,88008.0,0.0113626]
[1767287041541,0.04921492,88024.0,88009.0,0.01136247]
[1767287041922,0.04921492,88024.0,88010.0,0.01136234]
[1767287042287,0.06057492,88024.0,88010.0,0.01136234]
[1767287043900,0.06057492,88024.0,88009.0,0.01136247]
[1767287046201,0.06057492,88024.0,88012.0,0.01136208]
[1767287046465,0.06057492,88024.0,88010.0,0.01136234]
[1767287047852,0.06057492,88024.0,88011.0,0.01136221]
[1767287048346,0.06057492,88024.0,88010.0,0.01136]
[1767287048536,0.06057492,88024.0,88011.0,0.01136221]
[1767287050261,0.06057492,88024.0,88010.0,0.06817116]
[1767287050490,0.06057492,88024.0,88010.0,0.06753116]
[1767287051260,0.06057492,88024.0,88012.0,0.01136208]
[1767287053611,0.06057492,88024.0,88013.0,0.01136195]
[1767287054985,0.06057492,88024.0,88014.0,0.01136182]
[1767287057377,0.06057492,88024.0,88015.0,0.01136169]
[1767287057684,0.06057492,88024.0,88014.0,0.01136182]
[1767287057890,0.06057492,88024.0,88015.0,0.01136169]
[1767287058094,0.06057492,88024.0,88014.0,0.01136182]
[1767287058446,0.06057492,88024.0,88015.0,0.01136169]
[1767287058615,0.06057492,88024.0,88014.0,0.01136182]
[1767287059120,0.06057492,88024.0,88017.0,0.01136144]
[1767287059121,0.01136,88024.0,88017.0,0.01136144]
[1767287059486,0.01136,88024.0,88016.0,0.01136157]
[1767287060984,0.01136,88024.0,88017.0,0.01136144]
[1767287061868,0.01136,88024.0,88016.0,0.01136157]
[1767287062209,0.01136,88024.0,88017.0,0.01136144]
[1767287062774,0.01136,88024.0,88016.0,0.01136157]
[1767287063762,0.01136,88024.0,88017.0,0.01136144]
[1767287064175,0.01136,88024.0,88016.0,0.01136157]
[1767287064597,0.01136,88024.0,88017.0,0.01136144]
[1767287064803,0.01136,88024.0,88016.0,0.01136157]
[1767287065246,0.01136,88024.0,88017.0,0.01136144]
[1767287066171,0.01136,88024.0,88016.0,0.01136157]
[1767287066683,0.01136,88024.0,88017.0,0.01136144]
[1767287067545,0.01136,88024.0,88016.0,0.01136157]
[1767287068082,0.01136,88024.0,88015.0,0.01136169]
[1767287068310,0.01136,88024.0,88016.0,0.01136157]
[1767287068690,0.01136,88024.0,88015.0,0.01136169]
[1767287069264,0.01136,88024.0,88013.0,0.01136195]
[1767287069909,0.01136,88024.0,88014.0,0.01136182]
[1767287070844,0.01136,88024.0,88013.0,0.01136195]
[1767287071013,0.01136,88024.0,88011.0,0.01136221]
[1767287071201,0.05772976,88024.0,88012.0,0.01136208]
[1767287071526,0.05772976,88024.0,88011.0,0.01136221]
[1767287071682,0.05772976,88024.0,88011.0,0.00736221]
[1767287072068,0.05772976,88024.0,88012.0,0.01136208]
[1767287072271,0.05772976,88024.0,88011.0,0.00736221]
[1767287072679,0.05772976,88024.0,88010.0,0.02272234]
[1767287072887,0.05772976,88024.0,88011.0,0.01131979]
[1767287073426,0.05772976,88024.0,88012.0,0.01136208]
[1767287074948,0.05772976,88024.0,88011.0,0.01131979]
[1767287075104,0.05772976,88024.0,88012.0,0.01136208]
[1767287075526,0.05772976,88024.0,88010.0,0.02272234]
[1767287075733,0.05772976,88024.0,88011.0,0.01136221]
[1767287077364,0.05772976,88024.0,88012.0,0.01136208]
[1767287077539,0.05772976,88024.0,88011.0,0.01136221]
[1767287078035,0.05772976,88024.0,88012.0,0.01136208]
[1767287079348,0.04636976,88024.0,88012.0,0.06817218]
[1767287079544,0.04636976,88024.0,88013.0,0.01136195]
[1767287079755,0.01136,88028.0,88016.0,0.01136157]
[1767287079896,0.01136,88028.0,88015.0,0.01136169]
[1767287079897,0.03525129,88027.0,88015.0,0.01136169]
[1767287080099,0.01136,88028.0,88015.0,0.01136169]
[1767287080100,0.03525129,88026.0,88017.0,0.01136144]
[1767287080351,0.02458203,88025.0,88016.0,0.01136157]
[1767287080511,0.01136,88028.0,88017.0,0.01136144]
[1767287080706,0.03525123,88027.0,88017.0,0.01136144]
[1767287080954,0.03525123,88026.0,88017.0,0.01136144]
[1767287081174,0.02458198,88025.0,88018.0,0.01136131]
[1767287081369,0.01136,88028.0,88020.0,0.01136105]
[1767287081501,0.03525115,88027.0,88020.0,0.01136105]
[1767287081702,7.209e-05,88030.0,88024.0,0.04926099]
[1767287081908,7.209e-05,88030.0,88028.0,0.04926099]
[1767287083423,7.209e-05,88030.0,88029.0,0.05679946]
[1767287083642,7.209e-05,88030.0,88028.0,0.04926099]
[1767287084490,7.209e-05,88030.0,88027.0,0.01136015]
[1767287086330,7.209e-05,88030.0,88028.0,0.0568001]
[1767287087249,0.04636976,88046.0,88033.0,0.01135937]
[1767287087423,0.01136,88042.0,88033.0,0.01135937]
[1767287087665,0.02454194,88041.0,88033.0,0.01135937]
[1767287087870,0.01136,88042.0,88033.0,0.01135937]
[1767287088243,0.01136,88042.0,88030.0,0.51183168]
[1767287088447,0.01136,88042.0,88032.0,0.0113595]
[1767287088670,0.01136,88042.0,88031.0,0.01135963]
[1767287088887,0.01136,88042.0,88032.0,0.0113595]
[1767287089098,0.01136,88042.0,88033.0,0.01135937]
[1767287089303,0.01136,88042.0,88032.0,0.0113595]
[1767287089530,0.01136,88042.0,88031.0,0.01135963]
[1767287090137,0.01136,88042.0,88032.0,0.44367311]
[1767287090358,0.01136,88042.0,88032.0,0.44224148]
[1767287094826,0.000549,88032.0,88030.0,0.44367311]
[1767287095044,0.05987588,88042.0,88028.0,0.01136002]
[1767287096146,0.05892777,88042.0,88030.0,0.44367311]
[1767287096346,0.05892777,88042.0,88030.0,0.44312311]
[1767287099935,0.05892777,88042.0,88026.0,0.01136027]
[1767287100142,0.05892777,88042.0,88030.0,0.44367311]
[1767287102804,0.03410833,88041.0,88030.0,0.44367311]
[1767287102974,0.08262421,88041.0,88030.0,0.44367311]
[1767287105537,0.03410833,88041.0,88030.0,0.44367311]
[1767287105732,0.04851588,88040.0,88030.0,0.44367311]
[1767287108279,0.04851588,88040.0,88030.0,0.45503287]
[1767287108886,0.04851588,88040.0,88030.0,0.44367311]
[1767287109110,0.04851588,88040.0,88030.0,0.45503287]
[1767287109283,0.03410833,88041.0,88031.0,0.01135963]
[1767287109486,0.03355933,88041.0,88031.0,0.01135963]
[1767287109887,0.03355933,88041.0,88032.0,0.0113595]
[1767287110097,0.03355933,88041.0,88031.0,0.01135963]
[1767287110319,0.03521042,88040.0,88032.0,0.0113595]
[1767287110503,0.03355933,88041.0,88040.0,0.00055]
[1767287110706,0.06877658,88041.0,88031.0,0.01135963]
[1767287110881,0.03521725,88040.0,88032.0,0.0113595]
[1767287111085,0.01066386,88039.0,88032.0,0.0113595]
[1767287111272,0.02456963,88038.0,88032.0,0.0113595]
[1767287111470,0.03355933,88041.0,88038.0,0.00055]
[1767287111674,0.03523355,88040.0,88038.0,0.00055]
[1767287111916,0.03523355,88039.0,88032.0,0.0113595]
[1767287112119,0.02456963,88038.0,88033.0,0.01135937]
[1767287112319,0.03410833,88041.0,88032.0,0.0113595]
[1767287112515,0.03523505,88040.0,88032.0,0.0113595]
[1767287112716,0.03519242,88039.0,88032.0,0.0113595]
[1767287112918,0.02457068,88038.0,88031.0,0.45503274]
[1767287113155,0.03410833,88041.0,88031.0,0.01135963]
[1767287113358,0.02457088,88040.0,88031.0,0.01135963]
[1767287113998,0.02457088,88040.0,88030.0,0.01135976]
[1767287114419,0.02457088,88040.0,88031.0,0.01135963]
[1767287115970,0.02457088,88040.0,88032.0,0.0113595]
[1767287116168,0.02457088,88040.0,88033.0,0.01135937]
[1767287116732,0.03593051,88039.0,88032.0,0.0113595]
[1767287116934,0.02457088,88038.0,88033.0,0.01135937]
[1767287117054,0.02457088,88038.0,88032.0,0.0113595]
[1767287117257,0.02402088,88038.0,88032.0,0.0113595]
[1767287117466,0.01135963,88039.0,88032.0,0.0113595]
[1767287117666,0.01135963,88039.0,88031.0,0.01135963]
[1767287117867,0.01135963,88039.0,88032.0,0.0113595]
[1767287118426,0.01136,88042.0,88032.0,0.0113595]
[1767287118783,0.01136,88041.0,88032.0,0.0113595]
[1767287118995,0.01131798,88041.0,88032.0,0.0113595]
[1767287119472,0.01131798,88041.0,88031.0,0.01135963]
[1767287120864,0.01131798,88041.0,88032.0,0.0113595]
[1767287121070,0.01131798,88041.0,88031.0,0.01135963]
[1767287121209,0.01131798,88041.0,88032.0,0.0113595]
[1767287121394,0.01131798,88041.0,88031.0,0.45503274]
[1767287121852,0.01131798,88041.0,88032.0,0.0113595]
[1767287122256,0.01131798,88041.0,88031.0,0.45503274]
[1767287123967,0.01131798,88041.0,88032.0,0.0113595]
[1767287124239,0.01131798,88041.0,88033.0,0.01135937]
[1767287124909,0.01066632,88040.0,88033.0,0.01135937]
[1767287125239,0.01131798,88041.0,88032.0,0.0113595]
[1767287125474,0.01066714,88040.0,88033.0,0.01135937]
[1767287125670,0.01131798,88041.0,88032.0,0.0113595]
[1767287125882,0.01136,88042.0,88033.0,0.01135937]
[1767287126080,0.01066624,88041.0,88034.0,0.01135924]
[1767287126282,0.02272,88042.0,88034.0,0.01135924]
[1767287126528,0.01066526,88041.0,88034.0,0.01135924]
[1767287126732,0.02272,88042.0,88034.0,0.01135924]
[1767287126868,0.01066526,88041.0,88033.0,0.01135937]
[1767287127058,0.02272,88042.0,88033.0,0.01135937]
[1767287127285,0.01066522,88041.0,88033.0,0.01135937]
[1767287127491,0.02272,88042.0,88034.0,0.01135924]
[1767287129306,0.02456905,88041.0,88033.0,0.01135937]
[1767287130326,0.02456905,88041.0,88034.0,0.01135924]
[1767287130770,0.02456905,88041.0,88033.0,0.01135937]
[1767287131828,0.02456905,88041.0,88032.0,0.0113595]
[1767287132380,0.02456905,88041.0,88033.0,0.01135937]
[1767287135207,0.02456905,88041.0,88034.0,0.01135924]
[1767287135348,0.02456905,88041.0,88033.0,0.01135937]
[1767287135565,0.02456905,88041.0,88034.0,0.01135924]
[1767287137175,0.02456905,88041.0,88033.0,0.01135937]
[1767287137596,0.02456905,88041.0,88034.0,0.01135924]
[1767287137796,0.02456905,88041.0,88033.0,0.01135937]
[1767287138228,0.02272,88042.0,88034.0,0.01135924]
[1767287138438,0.02456566,88041.0,88034.0,0.01135924]
[1767287138576,0.01136,88042.0,88034.0,0.01135924]
[1767287138779,0.01136,88042.0,88033.0,0.01135937]
[1767287139232,0.01136,88042.0,88035.0,0.01135911]
[1767287139433,0.01136,88042.0,88035.0,0.01081011]
[1767287140159,0.01136,88042.0,88033.0,0.01135937]
[1767287140378,0.01136,88042.0,88034.0,0.01135924]
[1767287141004,0.01136,88042.0,88035.0,0.01135911]
[1767287142212,0.01136,88042.0,88036.0,0.01135898]
[1767287142419,0.01136,88042.0,88035.0,0.01135911]
[1767287142950,0.01136,88042.0,88036.0,0.01135898]
[1767287143320,0.01136,88042.0,88035.0,0.01135911]
[1767287144168,0.01136,88042.0,88036.0,0.01135898]
[1767287144458,0.01136,88042.0,88035.0,0.01135911]
[1767287144658,0.01136,88042.0,88034.0,0.01135924]
[1767287145057,0.01136,88042.0,88033.0,0.01080937]
[1767287145413,0.01136,88042.0,88034.0,0.01135924]
[1767287145612,0.01136,88042.0,88033.0,0.01080937]
[1767287146453,0.01136,88042.0,88034.0,0.01135924]
[1767287149175,0.01136,88042.0,88035.0,0.01135911]
[1767287150742,0.01136,88042.0,88036.0,0.01135898]
[1767287150945,0.01136,88042.0,88035.0,0.01135911]
[1767287151515,0.01136,88042.0,88034.0,0.01135924]
[1767287152108,0.01136,88042.0,88035.0,0.01135911]
[1767287152976,0.01136,88042.0,88036.0,0.01135898]
[1767287153203,0.02457112,88041.0,88036.0,0.01135898]
[1767287153761,0.02457112,88041.0,88035.0,0.01135911]
[1767287154127,0.02457112,88041.0,88036.0,0.01135898]
[1767287154993,0.02457112,88041.0,88035.0,0.01135911]
[1767287155131,0.02457112,88041.0,88036.0,0.01135898]
[1767287156036,0.04578864,88047.0,88046.0,1.9040465]
[1767287156233,0.06781451,88047.0,88046.0,1.84260101]
[1767287156436,0.10192284,88047.0,88046.0,1.84260101]
[1767287157553,0.10192284,88047.0,88046.0,1.75760101]
[1767287158553,0.10198691,88047.0,88046.0,1.75760101]
[1767287160813,0.10198704,88047.0,88046.0,1.75760101]
[1767287161647,0.09062704,88047.0,88046.0,1.75760101]
[1767287161864,0.0006667,88053.0,88046.0,1.80732543]
[1767287162021,0.0006667,88053.0,88048.0,0.04972442]
[1767287162222,0.000251,88052.0,88048.0,0.04972442]
[1767287162424,0.000251,88052.0,88046.0,1.75760101]
[1767287162830,0.04563964,88052.0,88046.0,1.75760101]
[1767287163181,0.04563964,88052.0,88046.0,1.70705201]
[1767287163388,0.04563964,88052.0,88046.0,1.6237025]
[1767287164380,0.01043706,88049.0,88046.0,1.5997025]
[1767287165706,0.01043706,88048.0,88046.0,1.5997025]
[1767287169630,0.01135731,88049.0,88046.0,1.5997025]
[1767287169972,0.01043706,88048.0,88046.0,1.5757025]
[1767287174401,0.02455639,88047.0,88046.0,1.5757025]
[1767287174960,0.02455639,88049.0,88046.0,1.5757025]
[1767287175167,0.03521455,88048.0,88046.0,1.5757025]
[1767287175375,0.02455639,88047.0,88046.0,1.5757025]
[1767287175589,0.02455639,88049.0,88046.0,1.5757025]
[1767287175795,0.03521461,88048.0,88046.0,1.5757025]
[1767287176025,0.02455639,88047.0,88046.0,1.5757025]
[1767287176234,0.02455639,88049.0,88046.0,1.57427113]
[1767287176535,0.01065833,88048.0,88046.0,1.57427113]
[1767287176713,0.02455639,88047.0,88046.0,1.57427113]
[1767287177093,0.02455639,88048.0,88046.0,1.57427113]
[1767287177432,0.02455639,88047.0,88046.0,1.57427113]
[1767287177835,0.02455639,88048.0,88046.0,1.57427113]
[1767287178038,0.02455639,88047.0,88046.0,1.57427113]
[1767287178186,0.02455639,88049.0,88046.0,1.57427113]
[1767287178382,0.01065852,88048.0,88046.0,1.57427113]
[1767287178596,0.02455639,88047.0,88046.0,1.57427113]
[1767287178942,0.02455639,88049.0,88046.0,1.57427113]
[1767287179145,0.03521491,88048.0,88046.0,1.57427113]
[1767287179353,0.02455639,88047.0,88046.0,1.57427113]
[1767287179550,0.02455639,88050.0,88046.0,1.57427113]
[1767287179690,0.01065867,88049.0,88046.0,1.57427113]
[1767287179890,0.03521506,88048.0,88046.0,1.57427113]
[1767287180095,0.02455639,88047.0,88046.0,1.57427113]
[1767287180317,0.02455639,88050.0,88046.0,1.57427113]
[1767287180546,0.03521524,88049.0,88046.0,1.57427113]
[1767287180708,0.03521524,88048.0,88046.0,1.57427113]
[1767287180915,0.02455639,88047.0,88046.0,1.57427113]
[1767287181357,0.02455639,88050.0,88046.0,1.57427113]
[1767287181501,0.01065906,88049.0,88046.0,1.57427113]
[1767287181701,0.03521545,88048.0,88046.0,1.57427113]
[1767287181953,0.02455639,88047.0,88046.0,1.57427113]
[1767287182329,0.02455639,88049.0,88046.0,1.57427113]
[1767287182582,0.03521568,88048.0,88046.0,1.57427113]
[1767287182739,0.02455639,88047.0,88046.0,1.57427113]
[1767287183161,0.02455639,88049.0,88046.0,1.57427113]
[1767287183378,0.01065942,88048.0,88046.0,1.57427113]
[1767287183574,0.02455639,88047.0,88046.0,1.57427113]
[1767287184038,0.02455639,88050.0,88046.0,1.57427113]
[1767287184280,0.03521595,88049.0,88046.0,1.57427113]
[1767287184509,0.03521595,88048.0,88046.0,1.57427113]
[1767287184711,0.02455639,88047.0,88046.0,1.57427113]
[1767287184890,0.02456033,88051.0,88047.0,0.000549]
[1767287185094,0.0352202,88050.0,88047.0,0.000549]
[1767287185265,0.0352202,88049.0,88046.0,1.57427113]
[1767287185478,0.03522101,88048.0,88046.0,1.57427113]
[1767287185695,0.03522101,88047.0,88046.0,1.57427113]
[1767287194531,0.03522101,88047.0,88046.0,1.51282824]
[1767287205253,0.03522821,88047.0,88046.0,1.51282824]
[1767287209475,0.03522821,88047.0,88046.0,1.45138531]
[1767287215806,0.03522821,88047.0,88046.0,1.44968857]
[1767287216083,0.03522821,88047.0,88046.0,1.37651242]
[1767287217325,0.01066707,88047.0,88046.0,0.85086758]
[1767287217803,0.01066707,88047.0,88046.0,0.52836628]
[1767287218015,0.01066707,88047.0,88046.0,0.57722057]
[1767287218151,0.01066707,88047.0,88046.0,0.52069495]
[1767287219372,0.01066707,88047.0,88046.0,0.51218197]
[1767287222393,0.01011807,88047.0,88046.0,0.22808623]
[1767287222598,0.01135731,88049.0,88047.0,0.04885429]
[1767287223041,0.01135718,88050.0,88046.0,0.22808623]
[1767287223238,0.01135731,88049.0,88046.0,0.22808623]
[1767287224896,0.0567872,88048.0,88046.0,0.22753723]
[1767287225099,0.01135731,88049.0,88046.0,0.22753723]
[1767287225314,0.05678773,88048.0,88046.0,0.22753723]
[1767287225520,0.0681445,88049.0,88046.0,0.22753723]
[1767287225728,0.01135731,88049.0,88047.0,0.04885429]
[1767287225944,0.01135718,88050.0,88047.0,0.04885429]
[1767287226145,0.01135731,88049.0,88046.0,0.08548936]
[1767287226720,0.01135718,88050.0,88046.0,0.08548936]
[1767287226918,0.000251,88052.0,88050.0,0.00055]
[1767287227143,0.01136,88051.0,88050.0,0.04885429]
[1767287228195,0.010811,88051.0,88050.0,0.04885429]
[1767287229543,0.010811,88051.0,88046.0,0.13434365]
[1767287234334,0.010811,88051.0,88046.0,0.08548936]
[1767287234660,0.01066693,88050.0,88046.0,0.08548936]
[1767287234864,0.01066693,88049.0,88046.0,0.08548936]
[1767287235073,0.01066693,88048.0,88046.0,0.08548936]
[1767287235270,0.01066693,88047.0,88046.0,0.08548936]
[1767287239347,0.03524344,88047.0,88046.0,0.08548936]
[1767287256259,0.03524353,88047.0,88046.0,0.08548936]
[1767287270248,0.010811,88051.0,88046.0,0.07781828]
[1767287270447,0.03523771,88050.0,88046.0,0.07781828]
[1767287270684,0.03523771,88049.0,88046.0,0.07781828]
[1767287270895,0.03523771,88048.0,88046.0,0.07781828]
[1767287271099,0.01066515,88047.0,88046.0,0.07781828]
[1767287271300,0.01066515,88047.0,88046.0,0.06929101]
[1767287271513,0.0352376,88047.0,88046.0,0.06929101]
[1767287272157,0.0352376,88047.0,88046.0,0.06874201]
[1767287278586,0.010811,88051.0,88047.0,0.04678053]
[1767287278807,0.00055,88047.0,88046.0,0.06874201]
[1767287279028,0.010811,88051.0,88046.0,0.06874201]
[1767287280581,0.02216805,88051.0,88046.0,0.06819201]
[1767287280753,0.01135731,88049.0,88046.0,0.06819201]
[1767287281075,0.02216805,88051.0,88046.0,0.06819201]
[1767287281252,0.010811,88051.0,88046.0,0.06819201]
[1767287283404,0.010811,88051.0,88046.0,0.05962326]
[1767287283907,0.010811,88051.0,88046.0,0.05198896]
[1767287284206,0.010811,88051.0,88046.0,0.00198896]
[1767287286819,0.05852145,88051.0,88046.0,0.00198896]
[1767287287222,0.010811,88051.0,88046.0,0.00198896]
[1767287287632,0.0006667,88053.0,88046.0,0.00198896]
[1767287287808,0.01136,88052.0,88046.0,0.00198896]
[1767287290651,0.03523726,88051.0,88046.0,0.00198896]
[1767287290850,0.03523726,88050.0,88046.0,0.00198896]
[1767287291162,0.03523726,88049.0,88046.0,0.00198896]
[1767287291456,0.01136,88052.0,88046.0,0.00198896]
[1767287291658,0.03523695,88051.0,88046.0,0.00198896]
[1767287291903,0.03468795,88050.0,88046.0,0.00198896]
[1767287292106,0.01066492,88049.0,88046.0,0.00198896]